fUST/lending_fUST_20250630
["ID","MTS","AMOUNT","RATE_DAILY","PERIOD"]
[368608270,1751232644041,-3724.66,0.00020246,2]
[368608271,1751232644050,-1246.11,0.00020246,2]
[368608272,1751232644059,-460.0,0.00020246,2]
[368608273,1751232644070,-1086.75,0.00020246,2]
[368608274,1751232644079,-805.1,0.00020246,2]
[368608275,1751232644090,-610.34,0.00020246,2]
[368608276,1751232644099,-758.77,0.00020246,2]
[368608277,1751232644108,-512.32,0.00020246,2]
[368608278,1751232644118,-502.48,0.00020246,2]
[368608279,1751232644127,-645.74,0.00020246,2]
[368608280,1751232644137,-543.69,0.00020246,2]
[368608281,1751232644147,-484.53,0.00020246,2]
[368608282,1751232644156,-654.27,0.00020246,2]
[368608283,1751232644165,-2816.14,0.00020246,2]
[368608284,1751232644175,-460.0,0.00020246,2]
[368608285,1751232644184,-460.0,0.00020246,2]
[368608286,1751232644193,-460.0,0.00020246,2]
[368608287,1751232644202,-1013.52,0.00020246,2]
[368608288,1751232644212,-464.77,0.00020246,2]
[368608289,1751232644222,-460.0,0.00020246,2]
[368608290,1751232644232,-605.55,0.00020246,2]
[368608291,1751232644241,-996.25,0.00020246,2]
[368608292,1751232644252,-460.0,0.00020247,2]
[368608293,1751232644261,-327.275605,0.00020247,2]
[368608294,1751232644272,-327.275605,0.00020247,2]
[368608295,1751232644281,-151.0,0.00020247,2]
[368608296,1751232644290,-205.075061,0.00020247,2]
[368608297,1751232644299,-205.075061,0.00020247,2]
[368608298,1751232644309,-151.0,0.00020247,2]
[368608299,1751232644317,-1054.478491,0.00020247,2]
[368608300,1751232644326,-1054.478491,0.00020247,2]
[368608301,1751232644336,-151.0,0.00020247,2]
[368608302,1751232644345,-151.0,0.00020247,2]
[368608303,1751232644354,-460.0,0.00020247,2]
[368608304,1751232644362,-151.0,0.00020247,2]
[368608305,1751232644371,-294.27238,0.00020247,2]
[368608306,1751232644380,-1213.40118887,0.00020281,2]
[368608307,1751232644390,-1000.0,0.00020281,2]
[368608308,1751232644399,-1500.0,0.00020329,2]
[368608309,1751232644408,-614.0,0.00020334,2]
[368608310,1751232644417,-1000.0,0.00020349,2]
[368608311,1751232644426,-1500.0,0.00020349,2]
[368608312,1751232644435,-500.0,0.00020349,2]
[368608313,1751232644444,-500.0,0.00020349,2]
[368608314,1751232644453,-500.0,0.00020349,2]
[368608315,1751232644462,-1500.0,0.00020349,2]
[368608316,1751232644471,-1500.0,0.00020349,2]
[368608317,1751232644480,-1500.0,0.00020349,2]
[368608318,1751232644489,-500.0,0.00020349,2]
[368608319,1751232644498,-1500.0,0.00020366,2]
[368608320,1751232644508,-1500.0,0.0002037,2]
[368608321,1751232644517,-2082.02383372,0.00020372,2]
[368608322,1751232644526,-4640.45828335,0.00020417,3]
[368608323,1751232644536,-153.0,0.00020438,2]
[368608324,1751232644545,-153.0,0.00020438,2]
[368608325,1751232644553,-153.0,0.00020438,2]
[368608326,1751232644563,-153.0,0.00020438,2]
[368608327,1751232644572,-603.0,0.00020467,2]
[368608328,1751232644582,-603.0,0.00020496,2]
[368608329,1751232644591,-614.0,0.00020509,2]
[368608330,1751232644599,-2820.07,0.00020519,2]
[368608331,1751232644609,-2100.68,0.00020519,2]
[368608332,1751232644618,-488.36,0.00020519,2]
[368608333,1751232644627,-460.0,0.00020519,2]
[368608334,1751232644637,-2549.93,0.00020519,2]
[368608335,1751232644646,-13171.80173947,0.00020519,2]
[368608336,1751232644655,-460.0,0.00020519,2]
[368608337,1751232644664,-2416.51,0.00020519,2]
[368608338,1751232644673,-2810.26,0.00020519,2]
[368608339,1751232644682,-460.0,0.00020519,2]
[368608340,1751232644691,-460.0,0.00020519,2]
[368608341,1751232644700,-1451.67,0.00020519,2]
[368608342,1751232644709,-1272.44,0.00020519,2]
[368608343,1751232644717,-460.0,0.00020519,2]
[368608344,1751232644727,-460.0,0.0002052,2]
[368608345,1751232644735,-496.39,0.0002052,2]
[368608346,1751232644746,-460.0,0.0002052,2]
[368608347,1751232644755,-1227.53,0.0002052,2]
[368608348,1751232644764,-3724.66,0.0002052,2]
[368608349,1751232644773,-1246.11,0.0002052,2]
[368608350,1751232644783,-460.0,0.0002052,2]
[368608351,1751232644792,-1086.75,0.0002052,2]
[368608352,1751232644801,-805.1,0.0002052,2]
[368608353,1751232644811,-610.34,0.0002052,2]
[368608354,1751232644820,-758.77,0.0002052,2]
[368608355,1751232644829,-512.32,0.0002052,2]
[368608356,1751232644838,-502.48,0.0002052,2]
[368608357,1751232644974,-645.74,0.0002052,2]
[368608358,1751232644984,-543.69,0.0002052,2]
[368608359,1751232644993,-151.0,0.0002052,2]
[368608360,1751232645002,-484.53,0.0002052,2]
[368608361,1751232645011,-654.27,0.0002052,2]
[368608362,1751232645020,-2816.14,0.0002052,2]
[368608363,1751232645029,-460.0,0.0002052,2]
[368608364,1751232645039,-460.0,0.0002052,2]
[368608365,1751232645048,-460.0,0.0002052,2]
[368608366,1751232645057,-1013.52,0.0002052,2]
[368608367,1751232645066,-464.77,0.0002052,2]
[368608368,1751232645076,-460.0,0.0002052,2]
[368608369,1751232645085,-605.55,0.0002052,2]
[368608370,1751232645095,-996.25,0.0002052,2]
[368608371,1751232645104,-460.0,0.00020521,2]
[368608372,1751232645113,-460.0,0.00020521,2]
[368608373,1751232645123,-151.0,0.00020522,2]
[368608374,1751232645133,-151.0,0.00020522,2]
[368608375,1751232645142,-151.0,0.00020522,2]
[368608376,1751232645151,-1211.126,0.00020523,2]
[368608377,1751232645161,-603.0,0.00020559,2]
[368608378,1751232645171,-4640.45828335,0.0002059,3]
[368608379,1751232645180,-170.316221,0.00020593,4]
[368608380,1751232645189,-5055.8,0.000206,2]
[368608381,1751232645199,-151.0,0.000206,4]
[368608382,1751232645208,-1000.0,0.000206,2]
[368608383,1751232645217,-151.0,0.00020619,2]
[368608384,1751232645226,-5000.0,0.00020619,2]
[368608385,1751232645235,-1230.65643113,0.00020632,2]
[368608386,1751232645244,-603.0,0.00020638,2]
[368608387,1751232645254,-2574.04785148,0.00020705,2]
[368608388,1751232645264,-603.0,0.00020745,2]
[368608389,1751232645273,-151.0,0.00020762,2]
[368608390,1751232645283,-151.0,0.00020762,2]
[368608391,1751232645292,-1247.578739,0.00020762,2]
[368608392,1751232645301,-1247.578739,0.00020762,2]
[368608393,1751232645310,-160.0,0.00020762,3]
[368608394,1751232645319,-4640.45828335,0.00020762,3]
[368608395,1751232645329,-12567.05932091,0.0002077,3]
[368608396,1751232645338,-213.82031328,0.0002077,3]
[368608397,1751232645348,-160.0,0.0002077,3]
[368608398,1751232645357,-847.31290578,0.0002077,3]
[368608399,1751232645367,-2820.07,0.00020793,2]
[368608400,1751232645376,-2100.68,0.00020793,2]
[368608401,1751232645385,-488.36,0.00020793,2]
[368608402,1751232645394,-460.0,0.00020793,2]
[368608403,1751232645404,-2549.93,0.00020793,2]
[368608404,1751232645414,-460.0,0.00020793,2]
[368608405,1751232645423,-2416.51,0.00020793,2]
[368608406,1751232645433,-2810.26,0.00020793,2]
[368608407,1751232645443,-460.0,0.00020793,2]
[368608408,1751232645452,-460.0,0.00020793,2]
[368608409,1751232645462,-1451.67,0.00020793,2]
[368608410,1751232645471,-1272.44,0.00020793,2]
[368608411,1751232645481,-460.0,0.00020793,2]
[368608412,1751232645490,-460.0,0.00020794,2]
[368608413,1751232645499,-496.39,0.00020794,2]
[368608414,1751232645509,-460.0,0.00020794,2]
[368608415,1751232645518,-1227.53,0.00020794,2]
[368608416,1751232645528,-3724.66,0.00020794,2]
[368608417,1751232645537,-1246.11,0.00020794,2]
[368608418,1751232645546,-460.0,0.00020794,2]
[368608419,1751232645556,-1086.75,0.00020794,2]
[368608420,1751232645565,-805.1,0.00020794,2]
[368608421,1751232645574,-610.34,0.00020794,2]
[368608422,1751232645584,-758.77,0.00020794,2]
[368608423,1751232645594,-512.32,0.00020794,2]
[368608424,1751232645603,-502.48,0.00020794,2]
[368608425,1751232645612,-645.74,0.00020794,2]
[368608426,1751232645622,-543.69,0.00020794,2]
[368608427,1751232645631,-484.53,0.00020794,2]
[368608428,1751232645640,-654.27,0.00020794,2]
[368608429,1751232645650,-2816.14,0.00020794,2]
[368608430,1751232645659,-395.38096173,0.00020794,2]
[368608431,1751232645668,-460.0,0.00020794,2]
[368608432,1751232645678,-460.0,0.00020794,2]
[368608433,1751232645688,-1013.52,0.00020794,2]
[368608434,1751232645698,-464.77,0.00020794,2]
[368608435,1751232645707,-460.0,0.00020794,2]
[368608436,1751232645716,-605.55,0.00020794,2]
[368608437,1751232645726,-996.25,0.00020794,2]
[368608438,1751232645735,-460.0,0.00020795,2]
[368608439,1751232645744,-327.275605,0.00020795,2]
[368608440,1751232645754,-327.275605,0.00020795,2]
[368608441,1751232645763,-151.0,0.00020795,2]
[368608442,1751232645772,-205.075061,0.00020795,2]
[368608443,1751232645782,-205.075061,0.00020795,2]
[368608444,1751232645791,-151.0,0.00020795,2]
[368608445,1751232645800,-1054.478491,0.00020795,2]
[368608446,1751232645809,-1054.478491,0.00020795,2]
[368608447,1751232645819,-151.0,0.00020795,2]
[368608448,1751232645828,-250.82859,0.00020795,2]
[368608449,1751232645837,-460.0,0.00020795,2]
[368608450,1751232645847,-151.0,0.00020795,2]
[368608451,1751232645856,-151.0,0.00020796,2]
[368608452,1751232645865,-151.0,0.00020796,2]
[368608453,1751232645875,-333.300236,0.00020796,2]
[368608454,1751232645884,-333.300236,0.00020796,2]
[368608455,1751232645894,-198.0,0.00020852,2]
[368608456,1751232645903,-170.16222439,0.00020852,2]
[368608457,1751232645912,-151.0,0.00020852,2]
[368608458,1751232645924,-151.0,0.00020852,2]
[368608459,1751232645933,-151.0,0.00020852,2]
[368608460,1751232645943,-151.0,0.00020852,2]
[368608461,1751232645952,-500.0,0.00020852,2]
[368608462,1751232645962,-151.0,0.00020852,2]
[368608463,1751232645972,-500.0,0.00020852,2]
[368608464,1751232645981,-151.0,0.00020852,2]
[368608465,1751232645992,-151.0,0.00020852,2]
[368608466,1751232646003,-507.50882752,0.00020877,2]
[368608467,1751232646013,-198.0,0.00020879,2]
[368608468,1751232646022,-198.0,0.00020879,2]
[368608469,1751232646032,-151.0,0.00020879,2]
[368608470,1751232646041,-198.0,0.00020879,2]
[368608471,1751232646051,-500.0,0.00020879,2]
[368608472,1751232646060,-500.0,0.00020879,2]
[368608473,1751232646070,-151.0,0.00020879,2]
[368608474,1751232646079,-151.0,0.00020879,2]
[368608475,1751232646088,-23487.02308577,0.00020884,2]
[368608476,1751232646098,-215.0738,0.00020892,2]
[368608477,1751232646108,-1425.31093451,0.00020897,2]
[368608478,1751232646116,-2000.0,0.00020897,2]
[368608479,1751232646126,-2000.0,0.00020897,2]
[368608480,1751232646135,-388.32780468,0.00020898,2]
[368608481,1751232646145,-151.0,0.000209,4]
[368608482,1751232646154,-151.0,0.000209,4]
[368608483,1751232646164,-198.83371723,0.00020907,2]
[368608484,1751232646173,-500.0,0.00020907,2]
[368608485,1751232646183,-500.0,0.00020907,2]
[368608486,1751232646192,-151.0,0.00020907,2]
[368608487,1751232646201,-151.0,0.00020907,2]
[368608488,1751232646212,-1000.0,0.00020914,2]
[368608489,1751232646221,-1007.15952276,0.00020918,2]
[368608490,1751232646230,-500.0,0.00020934,2]
[368608491,1751232646240,-500.0,0.00020934,2]
[368608492,1751232646250,-175.6042664,0.00020934,2]
[368608493,1751232646259,-151.0,0.00020934,2]
[368608494,1751232646268,-4640.45828335,0.00020934,4]
[368608495,1751232646277,-2082.02383372,0.00020944,2]
[368608496,1751232646286,-500.0,0.00020962,2]
[368608497,1751232646297,-302.0,0.00020962,2]
[368608498,1751232646306,-245.0,0.00020962,2]
[368608499,1751232646315,-2240.56,0.00021,2]
[368608500,1751232646324,-1104.46,0.00021013,2]
[368608501,1751232646334,-460.0,0.00021013,2]
[368608502,1751232646344,-460.0,0.00021013,2]
[368608503,1751232646352,-971.96,0.00021013,2]
[368608504,1751232646362,-460.0,0.00021013,2]
[368608505,1751232646371,-850.11,0.00021013,2]
[368608506,1751232646380,-460.0,0.00021013,2]
[368608507,1751232646390,-1564.9,0.00021013,2]
[368608508,1751232646399,-625.24,0.00021013,2]
[368608509,1751232646408,-460.0,0.00021013,2]
[368608510,1751232646417,-539.37054197,0.00021014,2]
[368608511,1751232646427,-337.186017,0.00021015,2]
[368608512,1751232646437,-337.186017,0.00021015,2]
[368608513,1751232646447,-22488.27352,0.0002104,2]
[368608514,1751232646456,-151.0,0.00021041,2]
[368608515,1751232646466,-151.0,0.00021041,2]
[368608516,1751232646475,-366.235562,0.00021041,2]
[368608517,1751232646484,-366.235562,0.00021041,2]
[368608518,1751232646494,-366.235562,0.00021041,2]
[368608519,1751232646503,-366.235562,0.00021041,2]
[368608520,1751232646512,-646.0,0.00021041,2]
[368608521,1751232646521,-2150.0,0.00021041,2]
[368608522,1751232646530,-406.0,0.00021041,2]
[368608523,1751232646539,-422.825,0.00021041,2]
[368608524,1751232646549,-966.0,0.00021041,2]
[368608525,1751232646559,-160.0,0.0002106,10]
[368608526,1751232646568,-12567.05932091,0.0002106,10]
[368608527,1751232646578,-213.82031328,0.0002106,10]
[368608528,1751232646587,-847.31290578,0.0002106,10]
[368608529,1751232646597,-2820.07,0.00021067,2]
[368608530,1751232646606,-2100.68,0.00021067,2]
[368608531,1751232646615,-488.36,0.00021067,2]
[368608532,1751232646625,-460.0,0.00021067,2]
[368608533,1751232646634,-2549.93,0.00021067,2]
[368608534,1751232646643,-460.0,0.00021067,2]
[368608535,1751232646653,-2416.51,0.00021067,2]
[368608536,1751232646662,-2810.26,0.00021067,2]
[368608537,1751232646671,-460.0,0.00021067,2]
[368608538,1751232646680,-460.0,0.00021067,2]
[368608539,1751232646690,-1451.67,0.00021067,2]
[368608540,1751232646699,-1272.44,0.00021067,2]
[368608541,1751232646708,-460.0,0.00021067,2]
[368608542,1751232646718,-460.0,0.00021068,2]
[368608543,1751232646727,-496.39,0.00021068,2]
[368608544,1751232646736,-460.0,0.00021068,2]
[368608545,1751232646746,-1227.53,0.00021068,2]
[368608546,1751232646755,-3724.66,0.00021068,2]
[368608547,1751232646764,-1246.11,0.00021068,2]
[368608548,1751232646773,-460.0,0.00021068,2]
[368608549,1751232646782,-1086.75,0.00021068,2]
[368608550,1751232646791,-805.1,0.00021068,2]
[368608551,1751232646800,-151.0,0.00021068,2]
[368608552,1751232646809,-610.34,0.00021068,2]
[368608553,1751232646818,-758.77,0.00021068,2]
[368608554,1751232646827,-512.32,0.00021068,2]
[368608555,1751232646838,-502.48,0.00021068,2]
[368608556,1751232646847,-645.74,0.00021068,2]
[368608557,1751232646856,-543.69,0.00021068,2]
[368608558,1751232646866,-151.0,0.00021068,2]
[368608559,1751232646875,-484.53,0.00021068,2]
[368608560,1751232646883,-654.27,0.00021068,2]
[368608561,1751232646893,-2816.14,0.00021068,2]
[368608562,1751232646902,-460.0,0.00021068,2]
[368608563,1751232646911,-460.0,0.00021068,2]
[368608564,1751232646923,-1013.52,0.00021068,2]
[368608565,1751232646933,-464.77,0.00021068,2]
[368608566,1751232646943,-460.0,0.00021068,2]
[368608567,1751232646952,-605.55,0.00021068,2]
[368608568,1751232646961,-996.25,0.00021068,2]
[368608569,1751232646970,-12500.0,0.00021069,2]
[368608570,1751232646979,-151.0,0.00021069,2]
[368608571,1751232646988,-151.0,0.00021069,2]
[368608572,1751232646998,-151.0,0.00021069,2]
[368608573,1751232647007,-460.0,0.00021069,2]
[368608574,1751232647017,-151.0,0.00021069,2]
[368608575,1751232647026,-151.0,0.00021069,2]
[368608576,1751232647035,-1247.578739,0.00021069,2]
[368608577,1751232647045,-1247.578739,0.00021069,2]
[368608578,1751232647054,-460.0,0.00021069,2]
[368608579,1751232647063,-510.03468,0.00021073,2]
[368608580,1751232647072,-12500.0,0.00021077,2]
[368608581,1751232647081,-151.0,0.00021078,2]
[368608582,1751232647091,-166.514571,0.00021078,2]
[368608583,1751232647101,-151.0,0.00021078,2]
[368608584,1751232647110,-151.0,0.00021078,2]
[368608585,1751232647120,-155.195304,0.00021078,2]
[368608586,1751232647129,-151.0,0.00021078,2]
[368608587,1751232647139,-423.53597,0.00021078,2]
[368608588,1751232647148,-423.53597,0.00021078,2]
[368608589,1751232647158,-377.548883,0.00021078,2]
[368608590,1751232647167,-377.548883,0.00021078,2]
[368608591,1751232647177,-985.639829,0.00021078,2]
[368608592,1751232647186,-985.639829,0.00021078,2]
[368608593,1751232647195,-151.0,0.00021078,2]
[368608594,1751232647205,-189.129779,0.00021078,2]
[368608595,1751232647214,-189.129779,0.00021078,2]
[368608596,1751232647225,-151.0,0.00021078,2]
[368608597,1751232647234,-151.0,0.00021078,2]
[368608598,1751232647243,-151.0,0.00021079,2]
[368608599,1751232647253,-151.0,0.00021079,2]
[368608600,1751232647263,-151.0,0.00021086,2]
[368608601,1751232647272,-151.0,0.00021086,2]
[368608602,1751232647282,-151.0,0.00021086,2]
[368608603,1751232647292,-151.0,0.00021086,2]
[368608604,1751232647301,-12500.0,0.00021086,2]
[368608605,1751232647310,-447.492543,0.00021095,2]
[368608606,1751232647319,-447.492543,0.00021095,2]
[368608607,1751232647328,-2365.94913893,0.00021095,2]
[368608608,1751232647466,-2930.84148076,0.00021095,2]
[368608609,1751232647580,-155.0,0.00021014,2]
[368608610,1751232647590,-845.0,0.00021095,2]
[368608611,1751232647602,-854.10510082,0.00021095,2]
[368608612,1751232647696,-545.51,0.00018327,2]
[368608613,1751232647706,-5504.10427949,0.00021095,2]
[368608614,1751232647715,-151.0,0.00021095,2]
[368608615,1751232647725,-182.030432,0.00021095,2]
[368608616,1751232647734,-182.030432,0.00021095,2]
[368608617,1751232647744,-208.945218,0.00021095,2]
[368608618,1751232647753,-208.945218,0.00021095,2]
[368608619,1751232647762,-151.0,0.00021095,2]
[368608620,1751232647771,-151.0,0.00021095,2]
[368608621,1751232647780,-327.275605,0.00021095,2]
[368608622,1751232647789,-327.275605,0.00021095,2]
[368608623,1751232647798,-205.075061,0.00021095,2]
[368608624,1751232647807,-205.075061,0.00021095,2]
[368608625,1751232647816,-1054.478491,0.00021095,2]
[368608626,1751232647826,-1054.478491,0.00021095,2]
[368608627,1751232647835,-151.0,0.00021095,2]
[368608628,1751232647844,-4640.45828335,0.00021107,4]
[368608629,1751232647853,-1958.56518753,0.00021131,2]
[368608630,1751232647862,-614.0,0.00021134,2]
[368608631,1751232647872,-150.0,0.0002114,2]
[368608632,1751232647881,-150.0,0.0002114,2]
[368608633,1751232647890,-150.0,0.0002114,2]
[368608634,1751232647899,-151.0,0.0002114,2]
[368608635,1751232647909,-151.0,0.0002114,2]
[368608636,1751232647920,-614.0,0.00021159,2]
[368608637,1751232647930,-155.242032,0.00021167,2]
[368608638,1751232647939,-5000.0,0.00021167,2]
[368608639,1751232647948,-151.0,0.00021176,2]
[368608640,1751232647959,-151.0,0.00021176,2]
[368608641,1751232648099,-151.0,0.00021176,2]
[368608642,1751232648108,-277.867485,0.00021176,2]
[368608643,1751232648118,-153.0,0.00021178,2]
[368608644,1751232648127,-153.0,0.00021178,2]
[368608645,1751232648137,-153.0,0.00021178,2]
[368608646,1751232648146,-153.0,0.00021178,2]
[368608647,1751232648155,-171.8798239,0.00021178,2]
[368608648,1751232648164,-153.0,0.00021178,2]
[368608649,1751232648174,-153.0,0.00021178,2]
[368608650,1751232648183,-153.0,0.00021178,2]
[368608651,1751232648192,-153.0,0.00021178,2]
[368608652,1751232648201,-159.291355,0.00021178,2]
[368608653,1751232648210,-153.0,0.00021178,2]
[368608654,1751232648219,-1149.7195556,0.00021178,2]
[368608655,1751232648229,-306.0,0.00021178,2]
[368608656,1751232648238,-355.0769662,0.00021178,2]
[368608657,1751232648247,-159.291355,0.00021178,2]
[368608658,1751232648257,-640.0,0.000212,2]
[368608659,1751232648266,-614.0,0.00021243,2]
[368608660,1751232648275,-153.0,0.0002126,2]
[368608661,1751232648284,-153.0,0.0002126,2]
[368608662,1751232648294,-153.0,0.0002126,2]
[368608663,1751232648303,-153.0,0.0002126,2]
[368608664,1751232648313,-153.0,0.0002126,2]
[368608665,1751232648323,-164.308551,0.0002126,2]
[368608666,1751232648333,-4640.45828335,0.00021279,5]
[368608667,1751232648342,-153.164602,0.00021287,2]
[368608668,1751232648352,-151.0,0.00021287,2]
[368608669,1751232648363,-151.0,0.00021287,2]
[368608670,1751232648372,-1104.46,0.00021287,2]
[368608671,1751232648382,-460.0,0.00021287,2]
[368608672,1751232648391,-460.0,0.00021287,2]
[368608673,1751232648401,-266.196021,0.00021287,2]
[368608674,1751232648410,-266.196021,0.00021287,2]
[368608675,1751232648420,-971.96,0.00021287,2]
[368608676,1751232648429,-850.11,0.00021287,2]
[368608677,1751232648438,-460.0,0.00021287,2]
[368608678,1751232648447,-1564.9,0.00021287,2]
[368608679,1751232648457,-625.24,0.00021287,2]
[368608680,1751232648468,-460.0,0.00021287,2]
[368608681,1751232648478,-151.0,0.00021289,4]
[368608682,1751232648487,-2820.07,0.00021341,2]
[368608683,1751232648496,-2100.68,0.00021341,2]
[368608684,1751232648506,-488.36,0.00021341,2]
[368608685,1751232648515,-460.0,0.00021341,2]
[368608686,1751232648526,-2549.93,0.00021341,2]
[368608687,1751232648535,-460.0,0.00021341,2]
[368608688,1751232648545,-2416.51,0.00021341,2]
[368608689,1751232648554,-2810.26,0.00021341,2]
[368608690,1751232648563,-102.32092694,0.00021341,2]
[368608691,1751232648577,-357.67907306,0.00021341,2]
[368608692,1751232648588,-460.0,0.00021341,2]
[368608693,1751232648598,-419.24859555,0.00021341,2]
[368608694,1751232648742,-460.0,0.00018327,2]
[368608695,1751232648751,-460.0,0.00018601,2]
[368608696,1751232648761,-395.02,0.00018875,2]
[368608697,1751232648770,-460.0,0.00021013,2]
[368608698,1751232648779,-460.0,0.00021287,2]
[368608699,1751232648788,-1032.42140445,0.00021341,2]
[368608700,1751232648798,-537.84051563,0.00021341,2]
[368608701,1751232648809,-734.59948437,0.00021341,2]
[368608702,1751232648819,-460.0,0.00021341,2]
[368608703,1751232648828,-261.90902114,0.00021342,2]
[368608704,1751232648838,-496.39,0.00021342,2]
[368608705,1751232648848,-151.0,0.00021342,2]
[368608706,1751232648857,-151.0,0.00021342,2]
[368608707,1751232648866,-460.0,0.00021342,2]
[368608708,1751232648876,-3192.43136009,0.00021342,2]
[368608709,1751232648887,-532.22863991,0.00021342,2]
[368608710,1751232648897,-1246.11,0.00021342,2]
[368608711,1751232648907,-805.1,0.00021342,2]
[368608712,1751232648917,-610.34,0.00021342,2]
[368608713,1751232648929,-758.77,0.00021342,2]
[368608714,1751232648938,-512.32,0.00021342,2]
[368608715,1751232648947,-502.48,0.00021342,2]
[368608716,1751232648956,-645.74,0.00021342,2]
[368608717,1751232648966,-543.69,0.00021342,2]
[368608718,1751232648975,-484.53,0.00021342,2]
[368608719,1751232648985,-654.27,0.00021342,2]
[368608720,1751232648995,-2816.14,0.00021342,2]
[368608721,1751232649004,-460.0,0.00021342,2]
[368608722,1751232649013,-460.0,0.00021342,2]
[368608723,1751232649023,-1013.52,0.00021342,2]
[368608724,1751232649032,-464.77,0.00021342,2]
[368608725,1751232649041,-415.23373348,0.00021342,2]
[368608726,1751232649050,-605.55,0.00021342,2]
[368608727,1751232649059,-996.25,0.00021342,2]
[368608728,1751232649068,-157.9936867,0.00021342,2]
[368608729,1751232649078,-380.95710339,0.00021343,2]
[368608730,1751232649094,-79.04289661,0.00021343,2]
[368608731,1751232649103,-460.0,0.00021343,2]
[368608732,1751232649113,-151.0,0.00021345,2]
[368608733,1751232649122,-151.0,0.00021345,2]
[368608734,1751232649132,-151.0,0.00021345,2]
[368608735,1751232649141,-403.8505503,0.00021345,2]
[368608736,1751232809975,166.66068396,0.00016972,2]
[368608737,1751232809999,333.33931604,0.00016972,2]
[368608738,1751232812565,500.0,0.00018068,2]
[368608740,1751232839442,359.934606,0.00013699,2]
[368608752,1751233408393,23514.7575481,0.00017328,2]
[368608789,1751233832076,-160.0,0.00018237,3]
[368608791,1751233832085,-300.0,0.00018323,2]
[368608793,1751233832095,-300.0,0.00018323,2]
[368608795,1751233832105,-300.0,0.00018323,2]
[368608797,1751233832115,-300.0,0.00018323,2]
[368608799,1751233832124,-309.0,0.00018323,2]
[368608801,1751233832133,-460.0,0.00018324,2]
[368608804,1751233832142,-460.0,0.00018324,2]
[368608807,1751233832151,-1066.61,0.00018324,2]
[368608810,1751233832161,-460.0,0.00018324,2]
[368608813,1751233832170,-2473.97679824,0.00018325,2]
[368608816,1751233832179,-469.87,0.00018325,2]
[368608819,1751233832188,-460.0,0.00018325,2]
[368608822,1751233832197,-460.0,0.00018325,2]
[368608825,1751233832207,-178.49186578,0.00018325,2]
[368608833,1751233832238,-281.50813422,0.00018325,2]
[368608836,1751233832247,-460.0,0.00018325,2]
[368608839,1751233832256,-460.0,0.00018325,2]
[368608842,1751233832266,-460.0,0.00018325,2]
[368608845,1751233832274,-460.0,0.00018325,2]
[368608848,1751233832283,-460.0,0.00018325,2]
[368608851,1751233832293,-480.08,0.00018325,2]
[368608854,1751233832302,-1718.89,0.00018325,2]
[368608856,1751233832311,-460.0,0.00018325,2]
[368608858,1751233832320,-460.0,0.00018325,2]
[368608859,1751233832329,-441.16089819,0.00018325,2]
[368608860,1751233832340,-509.77,0.00018325,2]
[368608861,1751233832349,-460.0,0.00018325,2]
[368608862,1751233832358,-460.0,0.00018325,2]